{"text_format":"1","workbook":"xlsx","n_sheets":4,"sheets":["Tájékoztató","Nyitó","NyáriStrázsaT-2025","Munka3"],"not_rendered":{"charts":0,"images":0,"macros":1,"external_links":0,"defined_names":3,"comments":1,"pivot_tables":0},"unopened":[],"bounds":{"document_bytes":16777216,"sheet_cells":100000,"rows_first":2000,"rows_last":500,"rows_between":2000,"halvings":0,"cell_chars":16384,"cell_head_chars":4096},"cells_cut":0,"cells_raw":0,"read":"whole","date_system":"1900"}

{"sheet":"Tájékoztató","index":0,"n_rows":11,"n_cols":1,"rows_kept":11,"cut":false,"hidden":true,"merged":[[9,0,9,13],[10,0,10,13],[7,0,7,13],[8,0,8,13],[6,0,6,13],[1,0,1,13],[2,0,2,13],[3,0,3,13],[4,0,4,13],[5,0,5,13]]}
[]
["VIII. Strázsa Honvéd Emlék Teljesítménytúra"]
["Előnevezés"]
[" -A kitöltött nevezési lapot 2021. április 11-én 24:00-ig kell visszaküldeni a strazsate@gmail.com címre. Csoportos kitöltés esetén is valamennyi cellát ki kell tölteni az ÖTPRÓBA rendszerben való azonosíthatóság érdekében."]
[" -A nevezési lapon a név, település, a születési év és a választott táv kitöltése kötelező, valamint a csoportból legalább egy telefonszám, amelyen a túra során elérhető a csoport."]
[" -A túra távját a lenyíló ablakból lehet kiválasztani."]
[" -A túra a járványra tekintettel ingyenes, de nincs ellátás, ebéd és póló sem készül."]
[" -További információ a www.hnyk.hu, oldalon, email-ben a strazsate@gmail.com  címen, vagy telefonon a 06-30-5386475 és a 06-20-972-54-21 telefonszámon"]
[" -A szervezők Szabadszállás vasútállomásról igény esetén autóbuszos szállítást biztosítanak a rajthelyre a 06:34-kor, a 07:20-kor, a 08:34-kor és a 09:20-kor érkező vonatokhoz térítés nélkül, valamint a 15 km-es távot választók a laktanyából szintén autóbusszal és térítés nélkül kerülnek kiszállításra a rajthelyre. Az autóbuszon csak ölben szállítható kutya utaztatható!"]
[" -A szervezők felhívják a figyelmet a közúton történő gyalogos közlekedés szabályainak betartására."]
[" -A túrán minden túrázó saját felelősségére vesz részt és hozzájárul adatainak a túra befejezéséig való nyilvántartáshoz. A túrát követően az adatok megsemmisítésre kerülnek. A túra adatkezelési tájékoztatója elérhető: http://hnyk.hu/index.php?r=StaticPage/View/653"]

{"sheet":"Nyitó","index":1,"n_rows":15,"n_cols":1,"rows_kept":15,"cut":false,"hidden":false,"merged":[[13,0,13,13],[14,0,14,13],[7,0,7,13],[8,0,8,13],[9,0,9,13],[10,0,10,13],[11,0,11,13],[12,0,12,13],[6,0,6,13],[1,0,1,13],[2,0,2,13],[3,0,3,13],[4,0,4,13],[5,0,5,13]]}
[]
["Nyári Strázsa túra - 2025"]
["Előnevezés"]
[" -A kitöltött nevezési lapot 20225. június 2-án 24:00-ig kell visszaküldeni a strazsate@gmail.com címre. "]
[" -A nevezési lapon a név, település, a születési év és a választott táv kitöltése kötelező, valamint a csoportból legalább egy telefonszám, amelyen a túra során elérhető a csoport."]
[" -A túra távját, a rendelt ebéd adagszámot és az autóbuszos szállítás kérése esetén az autóbusz Szabadszállásra érkezésének időpontját, a voucher igénybevételének szándékát a lenyíló ablakból lehet kiválasztani"]
[" -Az előnevezés a regisztrációs díj, a megrendelt étkezés és az autóbuszos szállítás árának átutalásával válik érvényessé! A Honvéd Nyugdíjas Klub számlaszáma: Takarék Bank 52800014-10105395-00000000  A „megjegyzés” rovatban kérjük feltüntetni a nevet és a születési évszámot is (csoportos nevezés esetén a csoportvezető nevét és születési évszámát) a könnyebb beazonosíthatóság érdekében."]
[" -Az 1955-ben, vagy az előtt, illetve a 2015-ben, vagy azt követően született nevezők ingyen vehetnek részt a rendezvényen."]
[" -Az ÖTPRÓBÁVAL LOS ANGELESBE versenysorozatban résztvevők a regisztrációs díjból 200 Ft kedvezményt kapnak"]
[" -Ebéd: A célban előzetes igény alapján meleg ebédet tudnak a rendezők biztosítani 3.000 Ft/fő/adag egységáron (Marhapörkölt, öregtarhonyával csemege uborkával)."]
[" -A rendezvény idején a célban büfé szolgáltatás vehető igénybe és a tervek szerint ötpróbás pontok is beválthatók."]
[" -További információ a www.hnyk.hu, oldalon, email-ben a strazsate@gmail.com  címen, vagy telefonon a 06-30-5386475, 06-30-958-71-73 és a 06-20-972-54-21 telefonszámon"]
[" -Az előregisztrált igénylők részére autóbuszos szállítási lehetőség (1.500 Ft oda-vissza) 08:45-től és 9:15-től Szabadszállásról a buszállomástól (a MÁV szolgáltatás helyett a VOLÁN két óránkénti járata Budapest NÉPLIGET és Kiskunhalas között a szabadszállási buszállomáson is megáll"]
[]
[" -A túrán minden túrázó saját felelősségére vesz részt és hozzájárul adatainak a túra befejezéséig való nyilvántartáshoz. A túrát követően az adatok megsemmisítésre kerülnek. A túra adatkezelési tájékoztatója elérhető: http://hnyk.hu/index.php?r=StaticPage/View/879"]

{"sheet":"NyáriStrázsaT-2025","index":2,"n_rows":520,"n_cols":31,"rows_kept":520,"cut":false,"hidden":false,"merged":[[519,3,519,4],[3,19,5,19],[3,12,3,18],[4,4,5,4],[4,5,5,5],[4,3,5,3],[4,10,5,10],[3,9,5,9],[3,0,3,7],[4,13,4,14],[4,18,5,18],[4,7,4,8],[4,17,5,17],[2,30,2,32],[0,0,0,19],[1,0,1,19],[515,3,518,3],[4,2,5,2],[4,6,5,6],[4,12,5,12],[4,0,5,0],[4,15,5,15],[4,1,5,1],[4,11,5,11],[4,16,5,16],[515,13,516,14],[517,14,517,15]]}
["ELŐNEVEZÉS 2025. június 2-ig"]
["Nyári Strázsa túra - 2025. június 07-n",null,null,null,null,null,null,null,null,null,null,null,null,null,null,null,null,null,null,null,null,null,null,null,"2021-09-12"]
[null,null,null,null,null,null,null,null,null,null,null,null,null,null,null,null,null,null,null,null,null,null,null,null,"Cartogr",null,null,"Előnevezés","Ebéd","Autóbusz","dátum (előnevezés)"]
["Alapadatok",null,null,null,null,null,null,null,null,"Választott táv*","Ebéd (adag)",null,"Fizetendő",null,null,null,null,null,null,"Megjegyzés",null,null,"S",null,"igen","18 km",1000,-400,0,"nem","2021-09-12"]
["Fsz.","Rajtsz.","Név*","Település*","Születési év*\n(csak évszám)","Tefonszám a túra alatt\n(06xxxxxxxxx)","Email cím (nem kötelező)","ÖTPRÓBA ",null,null,"Marhapörkölt (3000 Ft)","Autóbusz 08:45-től, vagy 09:15-től\n1500 Ft (oda-vissza)","Reg. Díj","Kedvezmény",null,"Ebéd\n3000 Ft","Autóbusz\n1500 Ft","VOUCHER","Összesen",null,null,null,"M",null,"nem","10 km",1000,-400,1,"08:45:00"]
[null,null,null,null,null,null,null,"azonosító\n(5pxxxxxx)\n","vouchert kívánok igénybe-venni",null,null,null,null,"1955-ben, vagy előtt, 2015-ban vagy később született 100 %","ötpróba  -200",null,null,null,null,null,"ötpróba száma van-e","10 év alatt és 70 év fölött","L",null,null,"6 km",500,-400,2,"09:15:00"]
[1,null,2,3,4,5,6,7,8,9,10,11,12,13,14,15,16,17,18,19,null,null,"XL",null,null,null,null,null,3]
[1,null,null,null,null,null,null,null,"nem",null,0,"nem",{"$f":"IF(ISBLANK(J8),0,VLOOKUP(J8,$Z$4:$AA$6,2))","v":0},{"$f":"IF(ISBLANK(E8),0,IF(ISBLANK(J8),0,IF(J8>0,IF(OR(1956>E8,2014<E8),(M8*-1),0))))","v":0},{"$f":"IF((M8+N8)=0,0,IF((H8)=0,0,-300))","v":0},{"$f":"IF(ISBLANK(K8),0,K8*3000)","v":0},{"$f":"IF(ISBLANK(L8),0,IF(L8=\"nem\",0,1500))","v":0},{"$f":"IF(I8=\"igen\",-5000,0)","v":0},{"$f":"IF(SUM(M8:R8)>0,SUM(M8:R8),0)","v":0},null,{"$f":"COUNTA(H8:H8)","v":0},{"$f":"IF(OR(1951>E8,2009<E8),2,1)","v":2},"2xl",null,null,null,null,null,4]
[2,null,null,null,null,null,null,null,"nem",null,0,"nem",{"$f":"IF(ISBLANK(J9),0,VLOOKUP(J9,$Z$4:$AA$6,2))","v":0},{"$f":"IF(ISBLANK(E9),0,IF(ISBLANK(J9),0,IF(J9>0,IF(OR(1956>E9,2014<E9),(M9*-1),0))))","v":0},{"$f":"IF((M9+N9)=0,0,IF((H9)=0,0,-300))","v":0},{"$f":"IF(ISBLANK(K9),0,K9*3000)","v":0},{"$f":"IF(ISBLANK(L9),0,IF(L9=\"nem\",0,1500))","v":0},{"$f":"IF(I9=\"igen\",-5000,0)","v":0},{"$f":"IF(SUM(M9:R9)>0,SUM(M9:R9),0)","v":0},null,0,{"$f":"IF(OR(1951>E9,2009<E9),2,1)","v":2},"3xl"]
[3,null,null,null,null,null,null,null,"nem",null,0,"nem",0,0,0,0,0,0,0,null,0]
[4,null,null,null,null,null,null,null,"nem",null,0,"nem",0,0,0,0,0,0,0,null,0]
[5,null,null,null,null,null,null,null,"nem",null,0,"nem",0,0,0,0,0,0,0,null,0]
[6,null,null,null,null,null,null,null,"nem",null,0,"nem",0,0,0,0,0,0,0,null,0]
[7,null,null,null,null,null,null,null,"nem",null,0,"nem",0,0,0,0,0,0,0,null,0]
[8,null,null,null,null,null,null,null,"nem",null,0,"nem",0,0,0,0,0,0,0,null,0]
[9,null,null,null,null,null,null,null,"nem",null,0,"nem",0,0,0,0,0,0,0,null,0]
[10,null,null,null,null,null,null,null,"nem",null,0,"nem",0,0,0,0,0,0,0,null,0]
[11,null,null,null,null,null,null,null,"nem",null,0,"nem",0,0,0,0,0,0,0,null,0]
[12,null,null,null,null,null,null,null,"nem",null,0,"nem",0,0,0,0,0,0,0,null,0]
[13,null,null,null,null,null,null,null,"nem",null,0,"nem",0,0,0,0,0,0,0,null,0]
[14,null,null,null,null,null,null,null,"nem",null,0,"nem",0,0,0,0,0,0,0,null,0]
[15,null,null,null,null,null,null,null,"nem",null,0,"nem",0,0,0,0,0,0,0,null,0]
[16,null,null,null,null,null,null,null,"nem",null,0,"nem",0,0,0,0,0,0,0,null,0]
[17,null,null,null,null,null,null,null,"nem",null,0,"nem",0,0,0,0,0,0,0,null,0]
[18,null,null,null,null,null,null,null,"nem",null,0,"nem",0,0,0,0,0,0,0,null,0]
[19,null,null,null,null,null,null,null,"nem",null,0,"nem",0,0,0,0,0,0,0,null,0]
[20,null,null,null,null,null,null,null,"nem",null,0,"nem",0,0,0,0,0,0,0,null,0]
[21,null,null,null,null,null,null,null,"nem",null,0,"nem",0,0,0,0,0,0,0,null,0]
[22,null,null,null,null,null,null,null,"nem",null,0,"nem",0,0,0,0,0,0,0,null,0]
[23,null,null,null,null,null,null,null,"nem",null,0,"nem",0,0,0,0,0,0,0,null,0]
[24,null,null,null,null,null,null,null,"nem",null,0,"nem",0,0,0,0,0,0,0,null,0]
[25,null,null,null,null,null,null,null,"nem",null,0,"nem",0,0,0,0,0,0,0,null,0]
[26,null,null,null,null,null,null,null,"nem",null,0,"nem",0,0,0,0,0,0,0,null,0]
[27,null,null,null,null,null,null,null,"nem",null,0,"nem",0,0,0,0,0,0,0,null,0]
[28,null,null,null,null,null,null,null,"nem",null,0,"nem",0,0,0,0,0,0,0,null,0]
[29,null,null,null,null,null,null,null,"nem",null,0,"nem",0,0,0,0,0,0,0,null,0]
[30,null,null,null,null,null,null,null,"nem",null,0,"nem",0,0,0,0,0,0,0,null,0]
[31,null,null,null,null,null,null,null,"nem",null,0,"nem",0,0,0,0,0,0,0,null,0]
[32,null,null,null,null,null,null,null,"nem",null,0,"nem",0,0,0,0,0,0,0,null,0]
[33,null,null,null,null,null,null,null,"nem",null,0,"nem",0,0,0,0,0,0,0,null,0]
[34,null,null,null,null,null,null,null,"nem",null,0,"nem",0,0,0,0,0,0,0,null,0]
[35,null,null,null,null,null,null,null,"nem",null,0,"nem",0,0,0,0,0,0,0,null,0]
[36,null,null,null,null,null,null,null,"nem",null,0,"nem",0,0,0,0,0,0,0,null,0]
[37,null,null,null,null,null,null,null,"nem",null,0,"nem",0,0,0,0,0,0,0,null,0]
[38,null,null,null,null,null,null,null,"nem",null,0,"nem",0,0,0,0,0,0,0,null,0]
[39,null,null,null,null,null,null,null,"nem",null,0,"nem",0,0,0,0,0,0,0,null,0]
[40,null,null,null,null,null,null,null,"nem",null,0,"nem",0,0,0,0,0,0,0,null,0]
[41,null,null,null,null,null,null,null,"nem",null,0,"nem",0,0,0,0,0,0,0,null,0]
[42,null,null,null,null,null,null,null,"nem",null,0,"nem",0,0,0,0,0,0,0,null,0]
[43,null,null,null,null,null,null,null,"nem",null,0,"nem",0,0,0,0,0,0,0,null,0]
[44,null,null,null,null,null,null,null,"nem",null,0,"nem",0,0,0,0,0,0,0,null,0]
[45,null,null,null,null,null,null,null,"nem",null,0,"nem",0,0,0,0,0,0,0,null,0]
[46,null,null,null,null,null,null,null,"nem",null,0,"nem",0,0,0,0,0,0,0,null,0]
[47,null,null,null,null,null,null,null,"nem",null,0,"nem",0,0,0,0,0,0,0,null,0]
[48,null,null,null,null,null,null,null,"nem",null,0,"nem",0,0,0,0,0,0,0,null,0]
[49,null,null,null,null,null,null,null,"nem",null,0,"nem",0,0,0,0,0,0,0,null,0]
[50,null,null,null,null,null,null,null,"nem",null,0,"nem",0,0,0,0,0,0,0,null,0]
[51,null,null,null,null,null,null,null,null,null,0,"nem",0,{"$f":"IF(ISBLANK(E58),0,IF(ISBLANK(J58),0,IF(J58>0,IF(OR(1965>E58,2013<E58),-1000,0))))","v":0},{"$f":"IF((M58+N58)=0,0,IF((H58)=0,0,-200))","v":0},{"$f":"IF(ISBLANK(K58),0,K58*2200)","v":0},{"$f":"IF(ISBLANK(L58),0,IF(L58=\"nem\",0,1500))","v":0},null,{"$f":"SUM(M58:P58)","v":0},null,0]
[52,null,null,null,null,null,null,null,null,null,0,"nem",0,0,0,0,0,null,0,null,0]
[53,null,null,null,null,null,null,null,null,null,0,"nem",0,0,0,0,0,null,0,null,0]
[54,null,null,null,null,null,null,null,null,null,0,"nem",0,0,0,0,0,null,0,null,0]
[55,null,null,null,null,null,null,null,null,null,0,"nem",0,0,0,0,0,null,0,null,0]
[56,null,null,null,null,null,null,null,null,null,0,"nem",0,0,0,0,0,null,0,null,0]
[57,null,null,null,null,null,null,null,null,null,0,"nem",0,0,0,0,0,null,0,null,0]
[58,null,null,null,null,null,null,null,null,null,0,"nem",0,0,0,0,0,null,0,null,0]
[59,null,null,null,null,null,null,null,null,null,0,"nem",0,0,0,0,0,null,0,null,0]
[60,null,null,null,null,null,null,null,null,null,0,"nem",0,0,0,0,0,null,0,null,0]
[61,null,null,null,null,null,null,null,null,null,0,"nem",0,0,0,0,0,null,0,null,0]
[62,null,null,null,null,null,null,null,null,null,0,"nem",0,0,0,0,0,null,0,null,0]
[63,null,null,null,null,null,null,null,null,null,0,"nem",0,0,0,0,0,null,0,null,0]
[64,null,null,null,null,null,null,null,null,null,0,"nem",0,0,0,0,0,null,0,null,0]
[65,null,null,null,null,null,null,null,null,null,0,"nem",{"$f":"IF(ISBLANK(J72),0,VLOOKUP(J72,$Z$4:$AA$6,2))","v":0},0,0,0,0,null,0,null,{"$f":"COUNTA(H72:H72)","v":0}]
[66,null,null,null,null,null,null,null,null,null,0,"nem",0,0,0,0,0,null,0,null,0]
[67,null,null,null,null,null,null,null,null,null,0,"nem",0,{"$f":"IF(ISBLANK(E74),0,IF(ISBLANK(J74),0,IF(J74>0,IF(OR(1965>E74,2013<E74),-1000,0))))","v":0},{"$f":"IF((M74+N74)=0,0,IF((H74)=0,0,-200))","v":0},{"$f":"IF(ISBLANK(K74),0,K74*2200)","v":0},{"$f":"IF(ISBLANK(L74),0,IF(L74=\"nem\",0,1500))","v":0},null,0,null,0]
[68,null,null,null,null,null,null,null,null,null,0,"nem",0,0,0,0,0,null,0,null,0]
[69,null,null,null,null,null,null,null,null,null,0,"nem",0,0,0,0,0,null,0,null,0]
[70,null,null,null,null,null,null,null,null,null,0,"nem",0,0,0,0,0,null,0,null,0]
[71,null,null,null,null,null,null,null,null,null,0,"nem",0,0,0,0,0,null,0,null,0]
[72,null,null,null,null,null,null,null,null,null,0,"nem",0,0,0,0,0,null,0,null,0]
[73,null,null,null,null,null,null,null,null,null,0,"nem",0,0,0,0,0,null,0,null,0]
[74,null,null,null,null,null,null,null,null,null,0,"nem",0,0,0,0,0,null,0,null,0]
[75,null,null,null,null,null,null,null,null,null,0,"nem",0,0,0,0,0,null,0,null,0]
[76,null,null,null,null,null,null,null,null,null,0,"nem",0,0,0,0,0,null,0,null,0]
[77,null,null,null,null,null,null,null,null,null,0,"nem",0,0,0,0,0,null,0,null,0]
[78,null,null,null,null,null,null,null,null,null,0,"nem",0,0,0,0,0,null,0,null,0]
[79,null,null,null,null,null,null,null,null,null,0,"nem",0,0,0,0,0,null,0,null,0]
[80,null,null,null,null,null,null,null,null,null,0,"nem",0,0,0,0,0,null,0,null,0]
[81,null,null,null,null,null,null,null,null,null,0,"nem",0,0,0,0,0,null,0,null,0]
[82,null,null,null,null,null,null,null,null,null,0,"nem",0,0,0,0,0,null,0,null,0]
[83,null,null,null,null,null,null,null,null,null,0,"nem",0,0,0,0,0,null,0,null,0]
[84,null,null,null,null,null,null,null,null,null,0,"nem",0,0,0,0,0,null,0,null,0]
[85,null,null,null,null,null,null,null,null,null,0,"nem",0,0,0,0,0,null,0,null,0]
[86,null,null,null,null,null,null,null,null,null,0,"nem",0,0,0,0,0,null,0,null,0]
[87,null,null,null,null,null,null,null,null,null,0,"nem",0,0,0,0,0,null,0,null,0]
[88,null,null,null,null,null,null,null,null,null,0,"nem",0,0,0,0,0,null,0,null,0]
[89,null,null,null,null,null,null,null,null,null,0,"nem",0,0,0,0,0,null,0,null,0]
[90,null,null,null,null,null,null,null,null,null,0,"nem",0,0,0,0,0,null,0,null,0]
[91,null,null,null,null,null,null,null,null,null,0,"nem",0,0,0,0,0,null,0,null,0]
[92,null,null,null,null,null,null,null,null,null,0,"nem",0,0,0,0,0,null,0,null,0]
[93,null,null,null,null,null,null,null,null,null,0,"nem",0,0,0,0,0,null,0,null,0]
[94,null,null,null,null,null,null,null,null,null,0,"nem",0,0,0,0,0,null,0,null,0]
[95,null,null,null,null,null,null,null,null,null,0,"nem",0,0,0,0,0,null,0,null,0]
[96,null,null,null,null,null,null,null,null,null,0,"nem",0,0,0,0,0,null,0,null,0]
[97,null,null,null,null,null,null,null,null,null,0,"nem",0,0,0,0,0,null,0,null,0]
[98,null,null,null,null,null,null,null,null,null,0,"nem",0,0,0,0,0,null,0,null,0]
[99,null,null,null,null,null,null,null,null,null,0,"nem",0,0,0,0,0,null,0,null,0]
[100,null,null,null,null,null,null,null,null,null,0,"nem",0,0,0,0,0,null,0,null,0]
[101,null,null,null,null,null,null,null,null,null,0,"nem",0,0,0,0,0,null,0,null,0]
[102,null,null,null,null,null,null,null,null,null,0,"nem",0,0,0,0,0,null,0,null,0]
[103,null,null,null,null,null,null,null,null,null,0,"nem",0,0,0,0,0,null,0,null,0]
[104,null,null,null,null,null,null,null,null,null,0,"nem",0,0,0,0,0,null,0,null,0]
[105,null,null,null,null,null,null,null,null,null,0,"nem",0,0,0,0,0,null,0,null,0]
[106,null,null,null,null,null,null,null,null,null,0,"nem",0,0,0,0,0,null,0,null,0]
[107,null,null,null,null,null,null,null,null,null,0,"nem",0,0,0,0,0,null,0,null,0]
[108,null,null,null,null,null,null,null,null,null,0,"nem",0,0,0,0,0,null,0,null,0]
[109,null,null,null,null,null,null,null,null,null,0,"nem",0,0,0,0,0,null,0,null,0]
[110,null,null,null,null,null,null,null,null,null,0,"nem",0,0,0,0,0,null,0,null,0]
[111,null,null,null,null,null,null,null,null,null,0,"nem",0,0,0,0,0,null,0,null,0]
[112,null,null,null,null,null,null,null,null,null,0,"nem",0,0,0,0,0,null,0,null,0]
[113,null,null,null,null,null,null,null,null,null,0,"nem",0,0,0,0,0,null,0,null,0]
[114,null,null,null,null,null,null,null,null,null,0,"nem",0,0,0,0,0,null,0,null,0]
[115,null,null,null,null,null,null,null,null,null,0,"nem",0,0,0,0,0,null,{"$f":"SUM(M122:P122)","v":0},null,0]
[116,null,null,null,null,null,null,null,null,null,0,"nem",0,0,0,0,0,null,0,null,0]
[117,null,null,null,null,null,null,null,null,null,0,"nem",0,0,0,0,0,null,0,null,0]
[118,null,null,null,null,null,null,null,null,null,0,"nem",0,0,0,0,0,null,0,null,0]
[119,null,null,null,null,null,null,null,null,null,0,"nem",0,0,0,0,0,null,0,null,0]
[120,null,null,null,null,null,null,null,null,null,0,"nem",0,0,0,0,0,null,0,null,0]
[121,null,null,null,null,null,null,null,null,null,0,"nem",0,0,0,0,0,null,0,null,0]
[122,null,null,null,null,null,null,null,null,null,0,"nem",0,0,0,0,0,null,0,null,0]
[123,null,null,null,null,null,null,null,null,null,0,"nem",0,0,0,0,0,null,0,null,0]
[124,null,null,null,null,null,null,null,null,null,0,"nem",0,0,0,0,0,null,0,null,0]
[125,null,null,null,null,null,null,null,null,null,0,"nem",0,0,0,0,0,null,0,null,0]
[126,null,null,null,null,null,null,null,null,null,0,"nem",0,0,0,0,0,null,0,null,0]
[127,null,null,null,null,null,null,null,null,null,0,"nem",0,0,0,0,0,null,0,null,0]
[128,null,null,null,null,null,null,null,null,null,0,"nem",0,0,0,0,0,null,0,null,0]
[129,null,null,null,null,null,null,null,null,null,0,"nem",{"$f":"IF(ISBLANK(J136),0,VLOOKUP(J136,$Z$4:$AA$6,2))","v":0},0,0,0,0,null,0,null,{"$f":"COUNTA(H136:H136)","v":0}]
[130,null,null,null,null,null,null,null,null,null,0,"nem",0,0,0,0,0,null,0,null,0]
[131,null,null,null,null,null,null,null,null,null,0,"nem",0,{"$f":"IF(ISBLANK(E138),0,IF(ISBLANK(J138),0,IF(J138>0,IF(OR(1965>E138,2013<E138),-1000,0))))","v":0},{"$f":"IF((M138+N138)=0,0,IF((H138)=0,0,-200))","v":0},{"$f":"IF(ISBLANK(K138),0,K138*2200)","v":0},{"$f":"IF(ISBLANK(L138),0,IF(L138=\"nem\",0,1500))","v":0},null,0,null,0]
[132,null,null,null,null,null,null,null,null,null,0,"nem",0,0,0,0,0,null,0,null,0]
[133,null,null,null,null,null,null,null,null,null,0,"nem",0,0,0,0,0,null,0,null,0]
[134,null,null,null,null,null,null,null,null,null,0,"nem",0,0,0,0,0,null,0,null,0]
[135,null,null,null,null,null,null,null,null,null,0,"nem",0,0,0,0,0,null,0,null,0]
[136,null,null,null,null,null,null,null,null,null,0,"nem",0,0,0,0,0,null,0,null,0]
[137,null,null,null,null,null,null,null,null,null,0,"nem",0,0,0,0,0,null,0,null,0]
[138,null,null,null,null,null,null,null,null,null,0,"nem",0,0,0,0,0,null,0,null,0]
[139,null,null,null,null,null,null,null,null,null,0,"nem",0,0,0,0,0,null,0,null,0]
[140,null,null,null,null,null,null,null,null,null,0,"nem",0,0,0,0,0,null,0,null,0]
[141,null,null,null,null,null,null,null,null,null,0,"nem",0,0,0,0,0,null,0,null,0]
[142,null,null,null,null,null,null,null,null,null,0,"nem",0,0,0,0,0,null,0,null,0]
[143,null,null,null,null,null,null,null,null,null,0,"nem",0,0,0,0,0,null,0,null,0]
[144,null,null,null,null,null,null,null,null,null,0,"nem",0,0,0,0,0,null,0,null,0]
[145,null,null,null,null,null,null,null,null,null,0,"nem",0,0,0,0,0,null,0,null,0]
[146,null,null,null,null,null,null,null,null,null,0,"nem",0,0,0,0,0,null,0,null,0]
[147,null,null,null,null,null,null,null,null,null,0,"nem",0,0,0,0,0,null,0,null,0]
[148,null,null,null,null,null,null,null,null,null,0,"nem",0,0,0,0,0,null,0,null,0]
[149,null,null,null,null,null,null,null,null,null,0,"nem",0,0,0,0,0,null,0,null,0]
[150,null,null,null,null,null,null,null,null,null,0,"nem",0,0,0,0,0,null,0,null,0]
[151,null,null,null,null,null,null,null,null,null,0,"nem",0,0,0,0,0,null,0,null,0]
[152,null,null,null,null,null,null,null,null,null,0,"nem",0,0,0,0,0,null,0,null,0]
[153,null,null,null,null,null,null,null,null,null,0,"nem",0,0,0,0,0,null,0,null,0]
[154,null,null,null,null,null,null,null,null,null,0,"nem",0,0,0,0,0,null,0,null,0]
[155,null,null,null,null,null,null,null,null,null,0,"nem",0,0,0,0,0,null,0,null,0]
[156,null,null,null,null,null,null,null,null,null,0,"nem",0,0,0,0,0,null,0,null,0]
[157,null,null,null,null,null,null,null,null,null,0,"nem",0,0,0,0,0,null,0,null,0]
[158,null,null,null,null,null,null,null,null,null,0,"nem",0,0,0,0,0,null,0,null,0]
[159,null,null,null,null,null,null,null,null,null,0,"nem",0,0,0,0,0,null,0,null,0]
[160,null,null,null,null,null,null,null,null,null,0,"nem",0,0,0,0,0,null,0,null,0]
[161,null,null,null,null,null,null,null,null,null,0,"nem",0,0,0,0,0,null,0,null,0]
[162,null,null,null,null,null,null,null,null,null,0,"nem",0,0,0,0,0,null,0,null,0]
[163,null,null,null,null,null,null,null,null,null,0,"nem",0,0,0,0,0,null,0,null,0]
[164,null,null,null,null,null,null,null,null,null,0,"nem",0,0,0,0,0,null,0,null,0]
[165,null,null,null,null,null,null,null,null,null,0,"nem",0,0,0,0,0,null,0,null,0]
[166,null,null,null,null,null,null,null,null,null,0,"nem",0,0,0,0,0,null,0,null,0]
[167,null,null,null,null,null,null,null,null,null,0,"nem",0,0,0,0,0,null,0,null,0]
[168,null,null,null,null,null,null,null,null,null,0,"nem",0,0,0,0,0,null,0,null,0]
[169,null,null,null,null,null,null,null,null,null,0,"nem",0,0,0,0,0,null,0,null,0]
[170,null,null,null,null,null,null,null,null,null,0,"nem",0,0,0,0,0,null,0,null,0]
[171,null,null,null,null,null,null,null,null,null,0,"nem",0,0,0,0,0,null,0,null,0]
[172,null,null,null,null,null,null,null,null,null,0,"nem",0,0,0,0,0,null,0,null,0]
[173,null,null,null,null,null,null,null,null,null,0,"nem",0,0,0,0,0,null,0,null,0]
[174,null,null,null,null,null,null,null,null,null,0,"nem",0,0,0,0,0,null,0,null,0]
[175,null,null,null,null,null,null,null,null,null,0,"nem",0,0,0,0,0,null,0,null,0]
[176,null,null,null,null,null,null,null,null,null,0,"nem",0,0,0,0,0,null,0,null,0]
[177,null,null,null,null,null,null,null,null,null,0,"nem",0,0,0,0,0,null,0,null,0]
[178,null,null,null,null,null,null,null,null,null,0,"nem",0,0,0,0,0,null,0,null,0]
[179,null,null,null,null,null,null,null,null,null,0,"nem",0,0,0,0,0,null,{"$f":"SUM(M186:P186)","v":0},null,0]
[180,null,null,null,null,null,null,null,null,null,0,"nem",0,0,0,0,0,null,0,null,0]
[181,null,null,null,null,null,null,null,null,null,0,"nem",0,0,0,0,0,null,0,null,0]
[182,null,null,null,null,null,null,null,null,null,0,"nem",0,0,0,0,0,null,0,null,0]
[183,null,null,null,null,null,null,null,null,null,0,"nem",0,0,0,0,0,null,0,null,0]
[184,null,null,null,null,null,null,null,null,null,0,"nem",0,0,0,0,0,null,0,null,0]
[185,null,null,null,null,null,null,null,null,null,0,"nem",0,0,0,0,0,null,0,null,0]
[186,null,null,null,null,null,null,null,null,null,0,"nem",0,0,0,0,0,null,0,null,0]
[187,null,null,null,null,null,null,null,null,null,0,"nem",0,0,0,0,0,null,0,null,0]
[188,null,null,null,null,null,null,null,null,null,0,"nem",0,0,0,0,0,null,0,null,0]
[189,null,null,null,null,null,null,null,null,null,0,"nem",0,0,0,0,0,null,0,null,0]
[190,null,null,null,null,null,null,null,null,null,0,"nem",0,0,0,0,0,null,0,null,0]
[191,null,null,null,null,null,null,null,null,null,0,"nem",0,0,0,0,0,null,0,null,0]
[192,null,null,null,null,null,null,null,null,null,0,"nem",0,0,0,0,0,null,0,null,0]
[193,null,null,null,null,null,null,null,null,null,0,"nem",{"$f":"IF(ISBLANK(J200),0,VLOOKUP(J200,$Z$4:$AA$6,2))","v":0},0,0,0,0,null,0,null,{"$f":"COUNTA(H200:H200)","v":0}]
[194,null,null,null,null,null,null,null,null,null,0,"nem",0,0,0,0,0,null,0,null,0]
[195,null,null,null,null,null,null,null,null,null,0,"nem",0,{"$f":"IF(ISBLANK(E202),0,IF(ISBLANK(J202),0,IF(J202>0,IF(OR(1965>E202,2013<E202),-1000,0))))","v":0},{"$f":"IF((M202+N202)=0,0,IF((H202)=0,0,-200))","v":0},{"$f":"IF(ISBLANK(K202),0,K202*2200)","v":0},{"$f":"IF(ISBLANK(L202),0,IF(L202=\"nem\",0,1500))","v":0},null,0,null,0]
[196,null,null,null,null,null,null,null,null,null,0,"nem",0,0,0,0,0,null,0,null,0]
[197,null,null,null,null,null,null,null,null,null,0,"nem",0,0,0,0,0,null,0,null,0]
[198,null,null,null,null,null,null,null,null,null,0,"nem",0,0,0,0,0,null,0,null,0]
[199,null,null,null,null,null,null,null,null,null,0,"nem",0,0,0,0,0,null,0,null,0]
[200,null,null,null,null,null,null,null,null,null,0,"nem",0,0,0,0,0,null,0,null,0]
[201,null,null,null,null,null,null,null,null,null,0,"nem",0,0,0,0,0,null,0,null,0]
[202,null,null,null,null,null,null,null,null,null,0,"nem",0,0,0,0,0,null,0,null,0]
[203,null,null,null,null,null,null,null,null,null,0,"nem",0,0,0,0,0,null,0,null,0]
[204,null,null,null,null,null,null,null,null,null,0,"nem",0,0,0,0,0,null,0,null,0]
[205,null,null,null,null,null,null,null,null,null,0,"nem",0,0,0,0,0,null,0,null,0]
[206,null,null,null,null,null,null,null,null,null,0,"nem",0,0,0,0,0,null,0,null,0]
[207,null,null,null,null,null,null,null,null,null,0,"nem",0,0,0,0,0,null,0,null,0]
[208,null,null,null,null,null,null,null,null,null,0,"nem",0,0,0,0,0,null,0,null,0]
[209,null,null,null,null,null,null,null,null,null,0,"nem",0,0,0,0,0,null,0,null,0]
[210,null,null,null,null,null,null,null,null,null,0,"nem",0,0,0,0,0,null,0,null,0]
[211,null,null,null,null,null,null,null,null,null,0,"nem",0,0,0,0,0,null,0,null,0]
[212,null,null,null,null,null,null,null,null,null,0,"nem",0,0,0,0,0,null,0,null,0]
[213,null,null,null,null,null,null,null,null,null,0,"nem",0,0,0,0,0,null,0,null,0]
[214,null,null,null,null,null,null,null,null,null,0,"nem",0,0,0,0,0,null,0,null,0]
[215,null,null,null,null,null,null,null,null,null,0,"nem",0,0,0,0,0,null,0,null,0]
[216,null,null,null,null,null,null,null,null,null,0,"nem",0,0,0,0,0,null,0,null,0]
[217,null,null,null,null,null,null,null,null,null,0,"nem",0,0,0,0,0,null,0,null,0]
[218,null,null,null,null,null,null,null,null,null,0,"nem",0,0,0,0,0,null,0,null,0]
[219,null,null,null,null,null,null,null,null,null,0,"nem",0,0,0,0,0,null,0,null,0]
[220,null,null,null,null,null,null,null,null,null,0,"nem",0,0,0,0,0,null,0,null,0]
[221,null,null,null,null,null,null,null,null,null,0,"nem",0,0,0,0,0,null,0,null,0]
[222,null,null,null,null,null,null,null,null,null,0,"nem",0,0,0,0,0,null,0,null,0]
[223,null,null,null,null,null,null,null,null,null,0,"nem",0,0,0,0,0,null,0,null,0]
[224,null,null,null,null,null,null,null,null,null,0,"nem",0,0,0,0,0,null,0,null,0]
[225,null,null,null,null,null,null,null,null,null,0,"nem",0,0,0,0,0,null,0,null,0]
[226,null,null,null,null,null,null,null,null,null,0,"nem",0,0,0,0,0,null,0,null,0]
[227,null,null,null,null,null,null,null,null,null,0,"nem",0,0,0,0,0,null,0,null,0]
[228,null,null,null,null,null,null,null,null,null,0,"nem",0,0,0,0,0,null,0,null,0]
[229,null,null,null,null,null,null,null,null,null,0,"nem",0,0,0,0,0,null,0,null,0]
[230,null,null,null,null,null,null,null,null,null,0,"nem",0,0,0,0,0,null,0,null,0]
[231,null,null,null,null,null,null,null,null,null,0,"nem",0,0,0,0,0,null,0,null,0]
[232,null,null,null,null,null,null,null,null,null,0,"nem",0,0,0,0,0,null,0,null,0]
[233,null,null,null,null,null,null,null,null,null,0,"nem",0,0,0,0,0,null,0,null,0]
[234,null,null,null,null,null,null,null,null,null,0,"nem",0,0,0,0,0,null,0,null,0]
[235,null,null,null,null,null,null,null,null,null,0,"nem",0,0,0,0,0,null,0,null,0]
[236,null,null,null,null,null,null,null,null,null,0,"nem",0,0,0,0,0,null,0,null,0]
[237,null,null,null,null,null,null,null,null,null,0,"nem",0,0,0,0,0,null,0,null,0]
[238,null,null,null,null,null,null,null,null,null,0,"nem",0,0,0,0,0,null,0,null,0]
[239,null,null,null,null,null,null,null,null,null,0,"nem",0,0,0,0,0,null,0,null,0]
[240,null,null,null,null,null,null,null,null,null,0,"nem",0,0,0,0,0,null,0,null,0]
[241,null,null,null,null,null,null,null,null,null,0,"nem",0,0,0,0,0,null,0,null,0]
[242,null,null,null,null,null,null,null,null,null,0,"nem",0,0,0,0,0,null,0,null,0]
[243,null,null,null,null,null,null,null,null,null,0,"nem",0,0,0,0,0,null,{"$f":"SUM(M250:P250)","v":0},null,0]
[244,null,null,null,null,null,null,null,null,null,0,"nem",0,0,0,0,0,null,0,null,0]
[245,null,null,null,null,null,null,null,null,null,0,"nem",0,0,0,0,0,null,0,null,0]
[246,null,null,null,null,null,null,null,null,null,0,"nem",0,0,0,0,0,null,0,null,0]
[247,null,null,null,null,null,null,null,null,null,0,"nem",0,0,0,0,0,null,0,null,0]
[248,null,null,null,null,null,null,null,null,null,0,"nem",0,0,0,0,0,null,0,null,0]
[249,null,null,null,null,null,null,null,null,null,0,"nem",0,0,0,0,0,null,0,null,0]
[250,null,null,null,null,null,null,null,null,null,0,"nem",0,0,0,0,0,null,0,null,0]
[251,null,null,null,null,null,null,null,null,null,0,"nem",0,0,0,0,0,null,0,null,0]
[252,null,null,null,null,null,null,null,null,null,0,"nem",0,0,0,0,0,null,0,null,0]
[253,null,null,null,null,null,null,null,null,null,0,"nem",0,0,0,0,0,null,0,null,0]
[254,null,null,null,null,null,null,null,null,null,0,"nem",0,0,0,0,0,null,0,null,0]
[255,null,null,null,null,null,null,null,null,null,0,"nem",0,0,0,0,0,null,0,null,0]
[256,null,null,null,null,null,null,null,null,null,0,"nem",0,0,0,0,0,null,0,null,0]
[257,null,null,null,null,null,null,null,null,null,0,"nem",{"$f":"IF(ISBLANK(J264),0,VLOOKUP(J264,$Z$4:$AA$6,2))","v":0},0,0,0,0,null,0,null,{"$f":"COUNTA(H264:H264)","v":0}]
[258,null,null,null,null,null,null,null,null,null,0,"nem",0,0,0,0,0,null,0,null,0]
[259,null,null,null,null,null,null,null,null,null,0,"nem",0,{"$f":"IF(ISBLANK(E266),0,IF(ISBLANK(J266),0,IF(J266>0,IF(OR(1965>E266,2013<E266),-1000,0))))","v":0},{"$f":"IF((M266+N266)=0,0,IF((H266)=0,0,-200))","v":0},{"$f":"IF(ISBLANK(K266),0,K266*2200)","v":0},{"$f":"IF(ISBLANK(L266),0,IF(L266=\"nem\",0,1500))","v":0},null,0,null,0]
[260,null,null,null,null,null,null,null,null,null,0,"nem",0,0,0,0,0,null,0,null,0]
[261,null,null,null,null,null,null,null,null,null,0,"nem",0,0,0,0,0,null,0,null,0]
[262,null,null,null,null,null,null,null,null,null,0,"nem",0,0,0,0,0,null,0,null,0]
[263,null,null,null,null,null,null,null,null,null,0,"nem",0,0,0,0,0,null,0,null,0]
[264,null,null,null,null,null,null,null,null,null,0,"nem",0,0,0,0,0,null,0,null,0]
[265,null,null,null,null,null,null,null,null,null,0,"nem",0,0,0,0,0,null,0,null,0]
[266,null,null,null,null,null,null,null,null,null,0,"nem",0,0,0,0,0,null,0,null,0]
[267,null,null,null,null,null,null,null,null,null,0,"nem",0,0,0,0,0,null,0,null,0]
[268,null,null,null,null,null,null,null,null,null,0,"nem",0,0,0,0,0,null,0,null,0]
[269,null,null,null,null,null,null,null,null,null,0,"nem",0,0,0,0,0,null,0,null,0]
[270,null,null,null,null,null,null,null,null,null,0,"nem",0,0,0,0,0,null,0,null,0]
[271,null,null,null,null,null,null,null,null,null,0,"nem",0,0,0,0,0,null,0,null,0]
[272,null,null,null,null,null,null,null,null,null,0,"nem",0,0,0,0,0,null,0,null,0]
[273,null,null,null,null,null,null,null,null,null,0,"nem",0,0,0,0,0,null,0,null,0]
[274,null,null,null,null,null,null,null,null,null,0,"nem",0,0,0,0,0,null,0,null,0]
[275,null,null,null,null,null,null,null,null,null,0,"nem",0,0,0,0,0,null,0,null,0]
[276,null,null,null,null,null,null,null,null,null,0,"nem",0,0,0,0,0,null,0,null,0]
[277,null,null,null,null,null,null,null,null,null,0,"nem",0,0,0,0,0,null,0,null,0]
[278,null,null,null,null,null,null,null,null,null,0,"nem",0,0,0,0,0,null,0,null,0]
[279,null,null,null,null,null,null,null,null,null,0,"nem",0,0,0,0,0,null,0,null,0]
[280,null,null,null,null,null,null,null,null,null,0,"nem",0,0,0,0,0,null,0,null,0]
[281,null,null,null,null,null,null,null,null,null,0,"nem",0,0,0,0,0,null,0,null,0]
[282,null,null,null,null,null,null,null,null,null,0,"nem",0,0,0,0,0,null,0,null,0]
[283,null,null,null,null,null,null,null,null,null,0,"nem",0,0,0,0,0,null,0,null,0]
[284,null,null,null,null,null,null,null,null,null,0,"nem",0,0,0,0,0,null,0,null,0]
[285,null,null,null,null,null,null,null,null,null,0,"nem",0,0,0,0,0,null,0,null,0]
[286,null,null,null,null,null,null,null,null,null,0,"nem",0,0,0,0,0,null,0,null,0]
[287,null,null,null,null,null,null,null,null,null,0,"nem",0,0,0,0,0,null,0,null,0]
[288,null,null,null,null,null,null,null,null,null,0,"nem",0,0,0,0,0,null,0,null,0]
[289,null,null,null,null,null,null,null,null,null,0,"nem",0,0,0,0,0,null,0,null,0]
[290,null,null,null,null,null,null,null,null,null,0,"nem",0,0,0,0,0,null,0,null,0]
[291,null,null,null,null,null,null,null,null,null,0,"nem",0,0,0,0,0,null,0,null,0]
[292,null,null,null,null,null,null,null,null,null,0,"nem",0,0,0,0,0,null,0,null,0]
[293,null,null,null,null,null,null,null,null,null,0,"nem",0,0,0,0,0,null,0,null,0]
[294,null,null,null,null,null,null,null,null,null,0,"nem",0,0,0,0,0,null,0,null,0]
[295,null,null,null,null,null,null,null,null,null,0,"nem",0,0,0,0,0,null,0,null,0]
[296,null,null,null,null,null,null,null,null,null,0,"nem",0,0,0,0,0,null,0,null,0]
[297,null,null,null,null,null,null,null,null,null,0,"nem",0,0,0,0,0,null,0,null,0]
[298,null,null,null,null,null,null,null,null,null,0,"nem",0,0,0,0,0,null,0,null,0]
[299,null,null,null,null,null,null,null,null,null,0,"nem",0,0,0,0,0,null,0,null,0]
[300,null,null,null,null,null,null,null,null,null,0,"nem",0,0,0,0,0,null,0,null,0]
[301,null,null,null,null,null,null,null,null,null,0,"nem",0,0,0,0,0,null,0,null,0]
[302,null,null,null,null,null,null,null,null,null,0,"nem",0,0,0,0,0,null,0,null,0]
[303,null,null,null,null,null,null,null,null,null,0,"nem",0,0,0,0,0,null,0,null,0]
[304,null,null,null,null,null,null,null,null,null,0,"nem",0,0,0,0,0,null,0,null,0]
[305,null,null,null,null,null,null,null,null,null,0,"nem",0,0,0,0,0,null,0,null,0]
[306,null,null,null,null,null,null,null,null,null,0,"nem",0,0,0,0,0,null,0,null,0]
[307,null,null,null,null,null,null,null,null,null,0,"nem",0,0,0,0,0,null,{"$f":"SUM(M314:P314)","v":0},null,0]
[308,null,null,null,null,null,null,null,null,null,0,"nem",0,0,0,0,0,null,0,null,0]
[309,null,null,null,null,null,null,null,null,null,0,"nem",0,0,0,0,0,null,0,null,0]
[310,null,null,null,null,null,null,null,null,null,0,"nem",0,0,0,0,0,null,0,null,0]
[311,null,null,null,null,null,null,null,null,null,0,"nem",0,0,0,0,0,null,0,null,0]
[312,null,null,null,null,null,null,null,null,null,0,"nem",0,0,0,0,0,null,0,null,0]
[313,null,null,null,null,null,null,null,null,null,0,"nem",0,0,0,0,0,null,0,null,0]
[314,null,null,null,null,null,null,null,null,null,0,"nem",0,0,0,0,0,null,0,null,0]
[315,null,null,null,null,null,null,null,null,null,0,"nem",0,0,0,0,0,null,0,null,0]
[316,null,null,null,null,null,null,null,null,null,0,"nem",0,0,0,0,0,null,0,null,0]
[317,null,null,null,null,null,null,null,null,null,0,"nem",0,0,0,0,0,null,0,null,0]
[318,null,null,null,null,null,null,null,null,null,0,"nem",0,0,0,0,0,null,0,null,0]
[319,null,null,null,null,null,null,null,null,null,0,"nem",0,0,0,0,0,null,0,null,0]
[320,null,null,null,null,null,null,null,null,null,0,"nem",0,0,0,0,0,null,0,null,0]
[321,null,null,null,null,null,null,null,null,null,0,"nem",{"$f":"IF(ISBLANK(J328),0,VLOOKUP(J328,$Z$4:$AA$6,2))","v":0},0,0,0,0,null,0,null,{"$f":"COUNTA(H328:H328)","v":0}]
[322,null,null,null,null,null,null,null,null,null,0,"nem",0,0,0,0,0,null,0,null,0]
[323,null,null,null,null,null,null,null,null,null,0,"nem",0,{"$f":"IF(ISBLANK(E330),0,IF(ISBLANK(J330),0,IF(J330>0,IF(OR(1965>E330,2013<E330),-1000,0))))","v":0},{"$f":"IF((M330+N330)=0,0,IF((H330)=0,0,-200))","v":0},{"$f":"IF(ISBLANK(K330),0,K330*2200)","v":0},{"$f":"IF(ISBLANK(L330),0,IF(L330=\"nem\",0,1500))","v":0},null,0,null,0]
[324,null,null,null,null,null,null,null,null,null,0,"nem",0,0,0,0,0,null,0,null,0]
[325,null,null,null,null,null,null,null,null,null,0,"nem",0,0,0,0,0,null,0,null,0]
[326,null,null,null,null,null,null,null,null,null,0,"nem",0,0,0,0,0,null,0,null,0]
[327,null,null,null,null,null,null,null,null,null,0,"nem",0,0,0,0,0,null,0,null,0]
[328,null,null,null,null,null,null,null,null,null,0,"nem",0,0,0,0,0,null,0,null,0]
[329,null,null,null,null,null,null,null,null,null,0,"nem",0,0,0,0,0,null,0,null,0]
[330,null,null,null,null,null,null,null,null,null,0,"nem",0,0,0,0,0,null,0,null,0]
[331,null,null,null,null,null,null,null,null,null,0,"nem",0,0,0,0,0,null,0,null,0]
[332,null,null,null,null,null,null,null,null,null,0,"nem",0,0,0,0,0,null,0,null,0]
[333,null,null,null,null,null,null,null,null,null,0,"nem",0,0,0,0,0,null,0,null,0]
[334,null,null,null,null,null,null,null,null,null,0,"nem",0,0,0,0,0,null,0,null,0]
[335,null,null,null,null,null,null,null,null,null,0,"nem",0,0,0,0,0,null,0,null,0]
[336,null,null,null,null,null,null,null,null,null,0,"nem",0,0,0,0,0,null,0,null,0]
[337,null,null,null,null,null,null,null,null,null,0,"nem",0,0,0,0,0,null,0,null,0]
[338,null,null,null,null,null,null,null,null,null,0,"nem",0,0,0,0,0,null,0,null,0]
[339,null,null,null,null,null,null,null,null,null,0,"nem",0,0,0,0,0,null,0,null,0]
[340,null,null,null,null,null,null,null,null,null,0,"nem",0,0,0,0,0,null,0,null,0]
[341,null,null,null,null,null,null,null,null,null,0,"nem",0,0,0,0,0,null,0,null,0]
[342,null,null,null,null,null,null,null,null,null,0,"nem",0,0,0,0,0,null,0,null,0]
[343,null,null,null,null,null,null,null,null,null,0,"nem",0,0,0,0,0,null,0,null,0]
[344,null,null,null,null,null,null,null,null,null,0,"nem",0,0,0,0,0,null,0,null,0]
[345,null,null,null,null,null,null,null,null,null,0,"nem",0,0,0,0,0,null,0,null,0]
[346,null,null,null,null,null,null,null,null,null,0,"nem",0,0,0,0,0,null,0,null,0]
[347,null,null,null,null,null,null,null,null,null,0,"nem",0,0,0,0,0,null,0,null,0]
[348,null,null,null,null,null,null,null,null,null,0,"nem",0,0,0,0,0,null,0,null,0]
[349,null,null,null,null,null,null,null,null,null,0,"nem",0,0,0,0,0,null,0,null,0]
[350,null,null,null,null,null,null,null,null,null,0,"nem",0,0,0,0,0,null,0,null,0]
[351,null,null,null,null,null,null,null,null,null,0,"nem",0,0,0,0,0,null,0,null,0]
[352,null,null,null,null,null,null,null,null,null,0,"nem",0,0,0,0,0,null,0,null,0]
[353,null,null,null,null,null,null,null,null,null,0,"nem",0,0,0,0,0,null,0,null,0]
[354,null,null,null,null,null,null,null,null,null,0,"nem",0,0,0,0,0,null,0,null,0]
[355,null,null,null,null,null,null,null,null,null,0,"nem",0,0,0,0,0,null,0,null,0]
[356,null,null,null,null,null,null,null,null,null,0,"nem",0,0,0,0,0,null,0,null,0]
[357,null,null,null,null,null,null,null,null,null,0,"nem",0,0,0,0,0,null,0,null,0]
[358,null,null,null,null,null,null,null,null,null,0,"nem",0,0,0,0,0,null,0,null,0]
[359,null,null,null,null,null,null,null,null,null,0,"nem",0,0,0,0,0,null,0,null,0]
[360,null,null,null,null,null,null,null,null,null,0,"nem",0,0,0,0,0,null,0,null,0]
[361,null,null,null,null,null,null,null,null,null,0,"nem",0,0,0,0,0,null,0,null,0]
[362,null,null,null,null,null,null,null,null,null,0,"nem",0,0,0,0,0,null,0,null,0]
[363,null,null,null,null,null,null,null,null,null,0,"nem",0,0,0,0,0,null,0,null,0]
[364,null,null,null,null,null,null,null,null,null,0,"nem",0,0,0,0,0,null,0,null,0]
[365,null,null,null,null,null,null,null,null,null,0,"nem",0,0,0,0,0,null,0,null,0]
[366,null,null,null,null,null,null,null,null,null,0,"nem",0,0,0,0,0,null,0,null,0]
[367,null,null,null,null,null,null,null,null,null,0,"nem",0,0,0,0,0,null,0,null,0]
[368,null,null,null,null,null,null,null,null,null,0,"nem",0,0,0,0,0,null,0,null,0]
[369,null,null,null,null,null,null,null,null,null,0,"nem",0,0,0,0,0,null,0,null,0]
[370,null,null,null,null,null,null,null,null,null,0,"nem",0,0,0,0,0,null,0,null,0]
[371,null,null,null,null,null,null,null,null,null,0,"nem",0,0,0,0,0,null,{"$f":"SUM(M378:P378)","v":0},null,0]
[372,null,null,null,null,null,null,null,null,null,0,"nem",0,0,0,0,0,null,0,null,0]
[373,null,null,null,null,null,null,null,null,null,0,"nem",0,0,0,0,0,null,0,null,0]
[374,null,null,null,null,null,null,null,null,null,0,"nem",0,0,0,0,0,null,0,null,0]
[375,null,null,null,null,null,null,null,null,null,0,"nem",0,0,0,0,0,null,0,null,0]
[376,null,null,null,null,null,null,null,null,null,0,"nem",0,0,0,0,0,null,0,null,0]
[377,null,null,null,null,null,null,null,null,null,0,"nem",0,0,0,0,0,null,0,null,0]
[378,null,null,null,null,null,null,null,null,null,0,"nem",0,0,0,0,0,null,0,null,0]
[379,null,null,null,null,null,null,null,null,null,0,"nem",0,0,0,0,0,null,0,null,0]
[380,null,null,null,null,null,null,null,null,null,0,"nem",0,0,0,0,0,null,0,null,0]
[381,null,null,null,null,null,null,null,null,null,0,"nem",0,0,0,0,0,null,0,null,0]
[382,null,null,null,null,null,null,null,null,null,0,"nem",0,0,0,0,0,null,0,null,0]
[383,null,null,null,null,null,null,null,null,null,0,"nem",0,0,0,0,0,null,0,null,0]
[384,null,null,null,null,null,null,null,null,null,0,"nem",0,0,0,0,0,null,0,null,0]
[385,null,null,null,null,null,null,null,null,null,0,"nem",{"$f":"IF(ISBLANK(J392),0,VLOOKUP(J392,$Z$4:$AA$6,2))","v":0},0,0,0,0,null,0,null,{"$f":"COUNTA(H392:H392)","v":0}]
[386,null,null,null,null,null,null,null,null,null,0,"nem",0,0,0,0,0,null,0,null,0]
[387,null,null,null,null,null,null,null,null,null,0,"nem",0,{"$f":"IF(ISBLANK(E394),0,IF(ISBLANK(J394),0,IF(J394>0,IF(OR(1965>E394,2013<E394),-1000,0))))","v":0},{"$f":"IF((M394+N394)=0,0,IF((H394)=0,0,-200))","v":0},{"$f":"IF(ISBLANK(K394),0,K394*2200)","v":0},{"$f":"IF(ISBLANK(L394),0,IF(L394=\"nem\",0,1500))","v":0},null,0,null,0]
[388,null,null,null,null,null,null,null,null,null,0,"nem",0,0,0,0,0,null,0,null,0]
[389,null,null,null,null,null,null,null,null,null,0,"nem",0,0,0,0,0,null,0,null,0]
[390,null,null,null,null,null,null,null,null,null,0,"nem",0,0,0,0,0,null,0,null,0]
[391,null,null,null,null,null,null,null,null,null,0,"nem",0,0,0,0,0,null,0,null,0]
[392,null,null,null,null,null,null,null,null,null,0,"nem",0,0,0,0,0,null,0,null,0]
[393,null,null,null,null,null,null,null,null,null,0,"nem",0,0,0,0,0,null,0,null,0]
[394,null,null,null,null,null,null,null,null,null,0,"nem",0,0,0,0,0,null,0,null,0]
[395,null,null,null,null,null,null,null,null,null,0,"nem",0,0,0,0,0,null,0,null,0]
[396,null,null,null,null,null,null,null,null,null,0,"nem",0,0,0,0,0,null,0,null,0]
[397,null,null,null,null,null,null,null,null,null,0,"nem",0,0,0,0,0,null,0,null,0]
[398,null,null,null,null,null,null,null,null,null,0,"nem",0,0,0,0,0,null,0,null,0]
[399,null,null,null,null,null,null,null,null,null,0,"nem",0,0,0,0,0,null,0,null,0]
[400,null,null,null,null,null,null,null,null,null,0,"nem",0,0,0,0,0,null,0,null,0]
[401,null,null,null,null,null,null,null,null,null,0,"nem",0,0,0,0,0,null,0,null,0]
[402,null,null,null,null,null,null,null,null,null,0,"nem",0,0,0,0,0,null,0,null,0]
[403,null,null,null,null,null,null,null,null,null,0,"nem",0,0,0,0,0,null,0,null,0]
[404,null,null,null,null,null,null,null,null,null,0,"nem",0,0,0,0,0,null,0,null,0]
[405,null,null,null,null,null,null,null,null,null,0,"nem",0,0,0,0,0,null,0,null,0]
[406,null,null,null,null,null,null,null,null,null,0,"nem",0,0,0,0,0,null,0,null,0]
[407,null,null,null,null,null,null,null,null,null,0,"nem",0,0,0,0,0,null,0,null,0]
[408,null,null,null,null,null,null,null,null,null,0,"nem",0,0,0,0,0,null,0,null,0]
[409,null,null,null,null,null,null,null,null,null,0,"nem",0,0,0,0,0,null,0,null,0]
[410,null,null,null,null,null,null,null,null,null,0,"nem",0,0,0,0,0,null,0,null,0]
[411,null,null,null,null,null,null,null,null,null,0,"nem",0,0,0,0,0,null,0,null,0]
[412,null,null,null,null,null,null,null,null,null,0,"nem",0,0,0,0,0,null,0,null,0]
[413,null,null,null,null,null,null,null,null,null,0,"nem",0,0,0,0,0,null,0,null,0]
[414,null,null,null,null,null,null,null,null,null,0,"nem",0,0,0,0,0,null,0,null,0]
[415,null,null,null,null,null,null,null,null,null,0,"nem",0,0,0,0,0,null,0,null,0]
[416,null,null,null,null,null,null,null,null,null,0,"nem",0,0,0,0,0,null,0,null,0]
[417,null,null,null,null,null,null,null,null,null,0,"nem",0,0,0,0,0,null,0,null,0]
[418,null,null,null,null,null,null,null,null,null,0,"nem",0,0,0,0,0,null,0,null,0]
[419,null,null,null,null,null,null,null,null,null,0,"nem",0,0,0,0,0,null,0,null,0]
[420,null,null,null,null,null,null,null,null,null,0,"nem",0,0,0,0,0,null,0,null,0]
[421,null,null,null,null,null,null,null,null,null,0,"nem",0,0,0,0,0,null,0,null,0]
[422,null,null,null,null,null,null,null,null,null,0,"nem",0,0,0,0,0,null,0,null,0]
[423,null,null,null,null,null,null,null,null,null,0,"nem",0,0,0,0,0,null,0,null,0]
[424,null,null,null,null,null,null,null,null,null,0,"nem",0,0,0,0,0,null,0,null,0]
[425,null,null,null,null,null,null,null,null,null,0,"nem",0,0,0,0,0,null,0,null,0]
[426,null,null,null,null,null,null,null,null,null,0,"nem",0,0,0,0,0,null,0,null,0]
[427,null,null,null,null,null,null,null,null,null,0,"nem",0,0,0,0,0,null,0,null,0]
[428,null,null,null,null,null,null,null,null,null,0,"nem",0,0,0,0,0,null,0,null,0]
[429,null,null,null,null,null,null,null,null,null,0,"nem",0,0,0,0,0,null,0,null,0]
[430,null,null,null,null,null,null,null,null,null,0,"nem",0,0,0,0,0,null,0,null,0]
[431,null,null,null,null,null,null,null,null,null,0,"nem",0,0,0,0,0,null,0,null,0]
[432,null,null,null,null,null,null,null,null,null,0,"nem",0,0,0,0,0,null,0,null,0]
[433,null,null,null,null,null,null,null,null,null,0,"nem",0,0,0,0,0,null,0,null,0]
[434,null,null,null,null,null,null,null,null,null,0,"nem",0,0,0,0,0,null,0,null,0]
[435,null,null,null,null,null,null,null,null,null,0,"nem",0,0,0,0,0,null,{"$f":"SUM(M442:P442)","v":0},null,0]
[436,null,null,null,null,null,null,null,null,null,0,"nem",0,0,0,0,0,null,0,null,0]
[437,null,null,null,null,null,null,null,null,null,0,"nem",0,0,0,0,0,null,0,null,0]
[438,null,null,null,null,null,null,null,null,null,0,"nem",0,0,0,0,0,null,0,null,0]
[439,null,null,null,null,null,null,null,null,null,0,"nem",0,0,0,0,0,null,0,null,0]
[440,null,null,null,null,null,null,null,null,null,0,"nem",0,0,0,0,0,null,0,null,0]
[441,null,null,null,null,null,null,null,null,null,0,"nem",0,0,0,0,0,null,0,null,0]
[442,null,null,null,null,null,null,null,null,null,0,"nem",0,0,0,0,0,null,0,null,0]
[443,null,null,null,null,null,null,null,null,null,0,"nem",0,0,0,0,0,null,0,null,0]
[444,null,null,null,null,null,null,null,null,null,0,"nem",0,0,0,0,0,null,0,null,0]
[445,null,null,null,null,null,null,null,null,null,0,"nem",0,0,0,0,0,null,0,null,0]
[446,null,null,null,null,null,null,null,null,null,0,"nem",0,0,0,0,0,null,0,null,0]
[447,null,null,null,null,null,null,null,null,null,0,"nem",0,0,0,0,0,null,0,null,0]
[448,null,null,null,null,null,null,null,null,null,0,"nem",0,0,0,0,0,null,0,null,0]
[449,null,null,null,null,null,null,null,null,null,0,"nem",{"$f":"IF(ISBLANK(J456),0,VLOOKUP(J456,$Z$4:$AA$6,2))","v":0},0,0,0,0,null,0,null,{"$f":"COUNTA(H456:H456)","v":0}]
[450,null,null,null,null,null,null,null,null,null,0,"nem",0,0,0,0,0,null,0,null,0]
[451,null,null,null,null,null,null,null,null,null,0,"nem",0,{"$f":"IF(ISBLANK(E458),0,IF(ISBLANK(J458),0,IF(J458>0,IF(OR(1965>E458,2013<E458),-1000,0))))","v":0},{"$f":"IF((M458+N458)=0,0,IF((H458)=0,0,-200))","v":0},{"$f":"IF(ISBLANK(K458),0,K458*2200)","v":0},{"$f":"IF(ISBLANK(L458),0,IF(L458=\"nem\",0,1500))","v":0},null,0,null,0]
[452,null,null,null,null,null,null,null,null,null,0,"nem",0,0,0,0,0,null,0,null,0]
[453,null,null,null,null,null,null,null,null,null,0,"nem",0,0,0,0,0,null,0,null,0]
[454,null,null,null,null,null,null,null,null,null,0,"nem",0,0,0,0,0,null,0,null,0]
[455,null,null,null,null,null,null,null,null,null,0,"nem",0,0,0,0,0,null,0,null,0]
[456,null,null,null,null,null,null,null,null,null,0,"nem",0,0,0,0,0,null,0,null,0]
[457,null,null,null,null,null,null,null,null,null,0,"nem",0,0,0,0,0,null,0,null,0]
[458,null,null,null,null,null,null,null,null,null,0,"nem",0,0,0,0,0,null,0,null,0]
[459,null,null,null,null,null,null,null,null,null,0,"nem",0,0,0,0,0,null,0,null,0]
[460,null,null,null,null,null,null,null,null,null,0,"nem",0,0,0,0,0,null,0,null,0]
[461,null,null,null,null,null,null,null,null,null,0,"nem",0,0,0,0,0,null,0,null,0]
[462,null,null,null,null,null,null,null,null,null,0,"nem",0,0,0,0,0,null,0,null,0]
[463,null,null,null,null,null,null,null,null,null,0,"nem",0,0,0,0,0,null,0,null,0]
[464,null,null,null,null,null,null,null,null,null,0,"nem",0,0,0,0,0,null,0,null,0]
[465,null,null,null,null,null,null,null,null,null,0,"nem",0,0,0,0,0,null,0,null,0]
[466,null,null,null,null,null,null,null,null,null,0,"nem",0,0,0,0,0,null,0,null,0]
[467,null,null,null,null,null,null,null,null,null,0,"nem",0,0,0,0,0,null,0,null,0]
[468,null,null,null,null,null,null,null,null,null,0,"nem",0,0,0,0,0,null,0,null,0]
[469,null,null,null,null,null,null,null,null,null,0,"nem",0,0,0,0,0,null,0,null,0]
[470,null,null,null,null,null,null,null,null,null,0,"nem",0,0,0,0,0,null,0,null,0]
[471,null,null,null,null,null,null,null,null,null,0,"nem",0,0,0,0,0,null,0,null,0]
[472,null,null,null,null,null,null,null,null,null,0,"nem",0,0,0,0,0,null,0,null,0]
[473,null,null,null,null,null,null,null,null,null,0,"nem",0,0,0,0,0,null,0,null,0]
[474,null,null,null,null,null,null,null,null,null,0,"nem",0,0,0,0,0,null,0,null,0]
[475,null,null,null,null,null,null,null,null,null,0,"nem",0,0,0,0,0,null,0,null,0]
[476,null,null,null,null,null,null,null,null,null,0,"nem",0,0,0,0,0,null,0,null,0]
[477,null,null,null,null,null,null,null,null,null,0,"nem",0,0,0,0,0,null,0,null,0]
[478,null,null,null,null,null,null,null,null,null,0,"nem",0,0,0,0,0,null,0,null,0]
[479,null,null,null,null,null,null,null,null,null,0,"nem",0,0,0,0,0,null,0,null,0]
[480,null,null,null,null,null,null,null,null,null,0,"nem",0,0,0,0,0,null,0,null,0]
[481,null,null,null,null,null,null,null,null,null,0,"nem",0,0,0,0,0,null,0,null,0]
[482,null,null,null,null,null,null,null,null,null,0,"nem",0,0,0,0,0,null,0,null,0]
[483,null,null,null,null,null,null,null,null,null,0,"nem",0,0,0,0,0,null,0,null,0]
[484,null,null,null,null,null,null,null,null,null,0,"nem",0,0,0,0,0,null,0,null,0]
[485,null,null,null,null,null,null,null,null,null,0,"nem",0,0,0,0,0,null,0,null,0]
[486,null,null,null,null,null,null,null,null,null,0,"nem",0,0,0,0,0,null,0,null,0]
[487,null,null,null,null,null,null,null,null,null,0,"nem",0,0,0,0,0,null,0,null,0]
[488,null,null,null,null,null,null,null,null,null,0,"nem",0,0,0,0,0,null,0,null,0]
[489,null,null,null,null,null,null,null,null,null,0,"nem",0,0,0,0,0,null,0,null,0]
[490,null,null,null,null,null,null,null,null,null,0,"nem",0,0,0,0,0,null,0,null,0]
[491,null,null,null,null,null,null,null,null,null,0,"nem",0,0,0,0,0,null,0,null,0]
[492,null,null,null,null,null,null,null,null,null,0,"nem",0,0,0,0,0,null,0,null,0]
[493,null,null,null,null,null,null,null,null,null,0,"nem",0,0,0,0,0,null,0,null,0]
[494,null,null,null,null,null,null,null,null,null,0,"nem",0,0,0,0,0,null,0,null,0]
[495,null,null,null,null,null,null,null,null,null,0,"nem",0,0,0,0,0,null,0,null,0]
[496,null,null,null,null,null,null,null,null,null,0,"nem",0,0,0,0,0,null,0,null,0]
[497,null,null,null,null,null,null,null,null,null,0,"nem",0,0,0,0,0,null,0,null,0]
[498,null,null,null,null,null,null,null,null,null,0,"nem",0,0,0,0,0,null,0,null,0]
[499,null,null,null,null,null,null,null,null,null,0,"nem",0,0,0,0,0,null,0,null,0]
[500,null,null,null,null,null,null,null,null,null,0,"nem",0,0,0,0,0,null,0,null,0]
[501,null,null,null,null,null,null,null,null,null,0,"nem",0,0,0,0,0,null,0,null,0]
[502,null,null,null,null,null,null,null,null,null,0,"nem",0,0,0,0,0,null,0,null,0]
[null,null,null,null,null,null,null,null,null,null,null,"nem",null,null,null,null,null,null,null,null,0]
[null,null,null,null,null,null,null,null,null,null,null,"nem"]
[]
[]
[]
["Összesen",null,null,null,null,null,null,{"$f":"COUNTA(H8:H514)","v":0},{"$f":"COUNTIF(I8:I57,\"igen\")","v":0},{"$f":"SUM(J8:J514)","v":0},{"$f":"SUM(K8:K514)","v":0},null,{"$f":"SUM(M8:M514)","v":0},0,0,0,0,null,0,null,{"$f":"COUNTA(H63:H63)","v":0}]
[null,null,null,"Túrázó összesen","5 km",{"$f":"COUNTIF($J$8:$J$514,\"5 km\")","v":0},null,"Vouch.kedv.Max.:",{"$f":"I515*5000","v":0},null,null,null,null,"Autóbusz",null,"08:15:00",{"$f":"COUNTIF($L$8:$L$514,\"8:15\")","v":0},null,null,null,{"$f":"COUNTA(H95:H95)","v":0}]
[null,null,null,null,"10 km",{"$f":"COUNTIF($J$8:$J$514,\"10 km\")","v":0},null,"Igénybevett kedv.:",{"$f":"S515-#REF!","v":{"$error":"#REF!"}},null,null,null,null,null,null,"08:50:00",{"$f":"COUNTIF($L$8:$L$514,\"8:50\")","v":0}]
[null,null,null,null,"15 km",{"$f":"COUNTIF($J$8:$J$514,\"15 km\")","v":0},null,null,null,null,null,null,null,null,"Összesen",null,{"$f":"SUM(Q516:Q517)","v":0}]
[]
[null,null,null,"Mindösszesen",null,{"$f":"SUM(F516:F519)","v":0}]

{"sheet":"Munka3","index":3,"n_rows":5,"n_cols":30,"rows_kept":5,"cut":false,"hidden":true,"merged":[]}
[]
[]
[]
[]
[null,null,null,null,null,null,null,null,null,null,null,null,null,null,null,null,null,null,null,null,null,null,null,null,null,null,null,null,null,"2019-03-19"]